[Event "24th Hoogeschool Zeeland 2022"]
[Site "Vlissingen"]
[Date "2022.08.11"]
[Round "7.15"]
[White "Marzano, Carlo"]
[Black "Laux, Dominik"]
[Result "1/2-1/2"]
[ECO "D36"]
[WhiteElo "2079"]
[BlackElo "2320"]
[Annotator "TA"]
[PlyCount "42"]
[EventDate "2022.08.05"]
[EventType "swiss"]
[EventCountry "NED"]
[SourceTitle "playchess.com"]
[Source "ChessBase"]
[SourceQuality "1"]
[TimeControl "40/5400+30:1800+30"]

{[%evp 26,42,0,-7,-5,-5,0,-6,0,-5,-5,-5,0,0,0,0,0,0,0]} 1. d4 {[%emt 0:00:02]} d5 {[%emt 0:07:57]} 2. c4 {[%emt 0:00:07]} c6 {[%emt 0:00:42]} 3. Nf3 {[%emt 0:00:04]} Nf6 {[%emt 0:00:04]} 4. Nc3 {[%emt 0:00:07]} e6 {[%emt 0:00:21]} 5. cxd5 {[%emt 0:00:08]} exd5 {[%emt 0:00:22]} 6. Qc2 {[%emt 0:00:17]} g6 {[%emt 0:02:26]} 7. Bg5 {[%emt 0:00:08]} Be7 {[%emt 0:01:47]} 8. e3 {[%emt 0:00:06]} Bf5 {[%emt 0:01:42]} 9. Bd3 {[%emt 0:00:04]} Bxd3 {[%emt 0:00:08]} 10. Qxd3 {[%emt 0:00:04]} Nbd7 {[%emt 0:05:56]} 11. O-O {[%emt 0:00:13]} O-O {[%emt 0:01:24]} 12. Rab1 {[%emt 0:00:09]} a5 {[%emt 0:03:51]} 13. a3 {[%emt 0:00:03]} Re8 {[%emt 0:07:22]} 14. Qc2 {[%emt 0:00:16] The position is equal.} Ne4 {[%emt 0:10:02] D36: Queen's Gambit Declined: Exchange Variation: Main line (5 Bg5 c6 6 Qc2).} 15. Bxe7 {[%emt 0:00:07]} Qxe7 {[%emt 0:00:17]} 16. Rfc1 {[%emt 0:00:36]} Ndf6 {[%emt 0:10:57]} 17. h3 {[%emt 0:06:47] [#]} Nd6 $146 {[%emt 0:07:09]} ({Predecessor:} 17... Nxc3 18. Qxc3 Ne4 19. Qc2 Nd6 20. Ne5 f6 21. Nd3 Qe4 22. Nc5 Qxc2 23. Rxc2 Re7 {½-½ (31) Kalodoukas,O (1752)-Ladas,D (1668) Nikaia 2012}) 18. Ne5 {[%emt 0:08:54]} Nfe4 {[%emt 0:01:11]} 19. Nxe4 {[%emt 0:00:21]} Nxe4 {[%emt 0:00:09]} 20. Nd3 {[%emt 0:06:24]} h5 {[%emt 0:05:16]} 21. a4 {[%emt 0:02:06]} Kg7 {[%emt 0:08:53] A rather calm draw.  Weighted Error Value: White=0.01 (flawless) /Black=0.03 (flawless)} 1/2-1/2

[Event "24th Hoogeschool Zeeland 2022"]
[Site "Vlissingen"]
[Date "2022.08.11"]
[Round "7.16"]
[White "Gijsen, William"]
[Black "Bruil, Rembrandt"]
[Result "1-0"]
[ECO "B84"]
[WhiteElo "2079"]
[BlackElo "2204"]
[Annotator "TA"]
[PlyCount "139"]
[EventDate "2022.08.05"]
[EventType "swiss"]
[EventCountry "NED"]
[SourceTitle "playchess.com"]
[Source "ChessBase"]
[SourceQuality "1"]
[TimeControl "40/5400+30:1800+30"]

{[%evp 16,139,58,-20,-19,-25,0,-28,-13,-38,-35,-70,-49,-43,-71,-72,-66,-64,-65,-54,-60,-62,-52,-61,-55,-60,120,122,109,106,265,143,133,4,57,0,79,76,106,103,110,112,107,100,101,68,150,154,149,152,156,154,142,39,37,31,31,19,20,31,31,29,39,29,48,36,50,46,43,38,917,925,572,99,141,122,260,250,448,434,29971,1169,1086,1093,727,576,500,493,4033,4033,1854,1595,1825,1646,29963,29964,29965,29960,29963,29965,29966,29967,29967,29968,29968,29968,29969,29969,29968,29970,29971,29972,29971,29971,29978,29976,29976,29973,29985,29986,29986,29987,29991,29988,29988,29988]} 1. e4 {[%emt 0:00:02]} c5 {[%emt 0:00:06]} 2. Nf3 {[%emt 0:00:05]} d6 {[%emt 0:00:05]} 3. d4 {[%emt 0:00:04]} cxd4 {[%emt 0:00:04]} 4. Nxd4 {[%emt 0:00:08]} Nf6 {[%emt 0:00:05]} 5. Nc3 {[%emt 0:00:21]} a6 {[%emt 0:00:05]} 6. Be3 {[%emt 0:01:41]} e6 {[%emt 0:00:09]} 7. Be2 {[%emt 0:03:52]} Be7 {[%emt 0:01:01]} 8. Qd2 {[%emt 0:01:15]} b5 {[%emt 0:03:04]} 9. a3 {[%emt 0:00:11]} (9. Bf3 $14) 9... Bb7 $11 {[%emt 0:02:10] B84: Sicilian Scheveningen: 6 Be2 a6, lines without early Be3.} 10. f3 {[%emt 0:00:11]} Nbd7 {[%emt 0:00:27][%cal Bb8d7,Bd7b6,Bb6c4][%mdl 32]} 11. g4 {[%emt 0:01:15]} Nb6 {[%emt 0:00:59] Black has an edge.} 12. O-O {[%emt 0:06:37]} Rc8 {[%emt 0:06:03]} 13. Rad1 {[%emt 0:01:03]} O-O {[%emt 0:03:22]} 14. g5 {[%emt 0:04:58]} Nfd7 {[%emt 0:00:30]} 15. f4 {[%emt 0:00:29]} Nc5 {[%emt 0:13:32]} 16. Bd3 {[%emt 0:03:27]} Nc4 {[%emt 0:18:58]} 17. Bxc4 {[%emt 0:01:38]} bxc4 {[%emt 0:00:05]} 18. Qg2 {[%emt 0:03:28] [#]} f5 $146 {[%emt 0:05:01]} ({Predecessor:} 18... g6 19. Nde2 Qc7 20. Ng3 f5 21. Rd2 Nxe4 22. Ngxe4 fxe4 23. Nxe4 d5 24. Qg4 Qc6 25. Ng3 Bc5 26. Re1 d4 27. Bxd4 Bxd4+ {0-1 (27) Barbet,L-Ris,R Agneaux 2001}) 19. Qh3 {[%emt 0:04:25][%cal Re4f5]} g6 {[%emt 0:14:51]} 20. exf5 {[%emt 0:12:01]} gxf5 $2 {[%emt 0:01:28]} (20... exf5 $15 21. Nf3 Re8) 21. Qh6 $16 {[%emt 0:01:32]} Qd7 {[%emt 0:14:00]} 22. Nf3 {[%emt 0:07:06]} Rc7 $2 {[%emt 0:13:58]} (22... Bxf3 $16 23. Rxf3 Rf7) 23. Ne5 {[%emt 0:03:28]} (23. Bd4 $18 {[%csl Gd4][%cal Rh6g7]} Bd8 24. Rf2) 23... Qe8 {[%emt 0:00:42]} 24. g6 {[%emt 0:01:50]} Bf6 {[%emt 0:00:44]} (24... hxg6 $11 25. Nxg6 Qc6) 25. Rxd6 $40 {[%emt 0:04:48][%mdl 128] White mounts an attack.} (25. Bxc5 $14 Bxe5 26. fxe5 (26. Bxd6 Rg7 $11)) 25... Bxe5 {[%emt 0:00:16]} (25... hxg6 $11 26. Bxc5 (26. Qxg6+ $2 Rg7 $19) (26. Nxc4 $2 Rh7 $19) 26... Rh7 27. Qxh7+ (27. Qxg6+ Rg7 $17) 27... Kxh7 28. Rd7+ Kg8 29. Bxf8 (29. Rxb7 Qc8 $17) 29... Bxe5) 26. fxe5 {[%emt 0:00:13] Bxc5 is the strong threat.} Rg7 {[%emt 0:00:20]} 27. Kf2 {[%emt 0:01:22]} Rxg6 {[%emt 0:00:54]} 28. Rg1 {[%emt 0:00:35] The board is on fire.} Ne4+ {[%emt 0:00:36]} 29. Nxe4 {[%emt 0:01:32]} fxe4+ {[%emt 0:00:04]} 30. Ke2 {[%emt 0:00:50] aiming for Rdd1. 0x0.0016820e49b1dp-1022s more active pieces.} Qf7 {[%emt 0:00:35]} ({Black should play} 30... Rxg1 $1 $14 31. Bxg1 Bd5) 31. Rxg6+ $1 {[%emt 0:00:41]} hxg6 {[%emt 0:00:02]} 32. Kd2 {[%emt 0:02:22]} a5 {[%emt 0:01:26] [#]} 33. h4 $1 {[%emt 0:01:05][%cal Oh4h5] Threatens to win with h5!} Bd5 {[%emt 0:00:13]} 34. Kc3 {[%emt 0:03:51]} (34. Ra6 $16) 34... Qg7 $14 {[%emt 0:00:31]} 35. Qxg7+ {[%emt 0:01:28]} Kxg7 {[%emt 0:00:02][%mdl 4096] Endgame KRB-KRB} 36. Rd7+ {[%emt 0:00:42]} Kg8 $1 {[%emt 0:00:43]} 37. Ra7 {[%emt 0:01:46]} Rf3 {[%emt 0:00:07]} 38. Kd4 {[%emt 0:00:57]} Rh3 {[%emt 0:00:01]} 39. Rxa5 {[%emt 0:00:45]} Rxh4 {[%emt 0:00:05]} 40. Rb5 {[%emt 0:04:27]} Rh2 {[%emt 0:00:13]} 41. a4 {[%emt 0:35:07]} Rxc2 {[%emt 0:32:21]} 42. a5 {[%emt 0:00:49] Strongly threatening a6.} Rh2 $2 {[%emt 0:00:00][%mdl 8192]} (42... Kf7 $14) 43. a6 $18 {[%emt 0:00:00]} Rh1 {[%emt 0:00:00]} 44. Bd2 $2 {[%emt 0:00:00]} (44. Rxd5 $18 {is more deadly. Ra5 would kill now.} exd5 45. a7 Rd1+ 46. Kc5) 44... Kf7 {[%emt 0:01:07] [#]} 45. a7 $1 {[%emt 0:00:00]} Rh8 {[%emt 0:00:59]} (45... Ra1 $16 {was called for.}) 46. Rb8 {[%emt 0:00:00]} Rh3 {[%emt 0:00:17]} (46... Rg8 {was necessary.} 47. Bg5 Rf8) 47. Be3 {[%emt 0:00:00] Intending Rd8 and mate.} Rh2 {[%emt 0:00:17]} (47... Rh1 $18 48. a8=Q Rd1+ 49. Kc5 Bxa8) 48. a8=Q {[%emt 0:00:00]} (48. Rd8 $142 g5 49. Rxd5 Rh8 50. Rb5 Ra8 51. Kxc4 Rc8+ 52. Kd4 Rd8+ 53. Kxe4) 48... Bxa8 {[%emt 0:00:01]} 49. Rxa8 {[%emt 0:00:00]} Rxb2 {[%emt 0:00:08] KRB-KR} 50. Ra7+ {[%emt 0:00:00]} Kf8 {[%emt 0:00:37]} 51. Kxc4 {[%emt 0:03:24] Hoping for Bc5+.} Rb1 {[%emt 0:00:12]} (51... Ke8 $142 52. Rg7 Rg2) 52. Bc5+ {[%emt 0:00:21]} Kg8 {[%emt 0:00:14]} 53. Kd4 {[%emt 0:02:18]} Re1 {[%emt 0:01:03]} 54. Bb4 {[%emt 0:02:40]} Rh1 {[%emt 0:00:30]} 55. Be7 {[%emt 0:01:48] White mates.} Re1 {[%emt 0:00:26]} 56. Bh4 {[%emt 0:01:47]} Rb1 {[%emt 0:00:23]} 57. Bf6 {[%emt 0:00:10]} Re1 {[%emt 0:01:06]} 58. Rg7+ {[%emt 0:01:13]} Kf8 {[%emt 0:00:01]} 59. Rxg6 {[%emt 0:00:16]} e3 {[%emt 0:00:07]} 60. Kd3 {[%emt 0:00:37]} e2 {[%emt 0:00:21]} 61. Kd2 {[%emt 0:00:33]} Ra1 {[%emt 0:00:06]} 62. Kxe2 {[%emt 0:00:16]} Ra3 {[%emt 0:00:06]} 63. Rg7 {[%emt 0:00:11]} Rb3 {[%emt 0:00:26]} 64. Re7 {[%emt 0:00:15]} Rb6 {[%emt 0:00:04]} 65. Ke3 {[%emt 0:00:17]} Rc6 {[%emt 0:00:30]} 66. Kf4 {[%emt 0:00:10]} Ra6 {[%emt 0:00:16]} 67. Kg5 {[%emt 0:00:11]} Rb6 {[%emt 0:00:16]} 68. Kg6 {[%emt 0:00:13]} Rb1 {[%emt 0:00:10]} 69. Rd7 {[%emt 0:00:41][%cal Rd7d8]} Rb8 {[%emt 0:01:07]} 70. Rh7 {[%emt 0:00:15] Weighted Error Value: White=0.31/Black=0.51} 1-0

[Event "24th Hoogeschool Zeeland 2022"]
[Site "Vlissingen"]
[Date "2022.08.11"]
[Round "7.17"]
[White "Nieuwelink, Kees"]
[Black "Warnaar, Alisha"]
[Result "1-0"]
[ECO "B26"]
[WhiteElo "2200"]
[BlackElo "2037"]
[Annotator "TA"]
[PlyCount "85"]
[EventDate "2022.08.05"]
[EventType "swiss"]
[EventCountry "NED"]
[SourceTitle "playchess.com"]
[Source "ChessBase"]
[SourceQuality "1"]
[TimeControl "40/5400+30:1800+30"]

{[%evp 17,85,-6,-2,-58,22,25,79,68,62,53,63,20,41,0,84,73,107,31,42,43,70,52,118,123,104,130,282,248,269,260,220,194,229,163,168,187,212,210,209,215,214,224,343,335,361,336,335,110,476,447,570,526,572,552,566,556,572,559,468,278,265,247,216,185,484,412,803,797,654,555]} 1. e4 {[%emt 0:00:30]} c5 {[%emt 0:01:24]} 2. Nc3 {[%emt 0:00:19]} Nc6 {[%emt 0:00:47]} 3. g3 {[%emt 0:00:07]} g6 {[%emt 0:00:17]} 4. Bg2 {[%emt 0:00:06]} Bg7 {[%emt 0:00:05]} 5. d3 {[%emt 0:00:12]} d6 {[%emt 0:00:53]} 6. Be3 {[%emt 0:00:45]} e6 {[%emt 0:03:15]} 7. Qd2 {[%emt 0:00:09]} Nge7 {[%emt 0:00:18]} 8. Nge2 {[%emt 0:00:43]} O-O {[%emt 0:00:42]} 9. O-O {[%emt 0:00:19]} Nd4 {[%emt 0:05:53]} 10. Bh6 {[%emt 0:00:51] B26: Closed Sicilian: 3 g3, lines with early Be3.} ({White should try} 10. Rae1 $11) 10... Nxe2+ {[%emt 0:06:26]} (10... Bxh6 $1 $15 11. Qxh6 Nxc2) 11. Nxe2 $11 {[%emt 0:00:22] [#]} Bxb2 $146 {[%emt 0:00:08]} (11... Bxh6 $11 {keeps the balance.} 12. Qxh6 Nc6) ({Predecessor:} 11... d5 12. Bxg7 Kxg7 13. Qc3+ Kg8 14. Qxc5 b6 15. Qe3 Ba6 16. Nf4 d4 17. Qd2 Rc8 {1-0 (31) Kozak,D-Sypnicki,D Krynica 1998}) 12. Bxf8 $16 {[%emt 0:00:30] White is better.} Qxf8 {[%emt 0:00:14]} 13. Rab1 {[%emt 0:00:25]} Bg7 {[%emt 0:02:44]} 14. c3 {[%emt 0:03:48] White is more active.} Nc6 {[%emt 0:07:21]} 15. d4 {[%emt 0:01:36]} c4 {[%emt 1:07:33]} (15... e5 $11) 16. f4 {[%emt 0:04:50]} Rb8 {[%emt 0:00:00]} 17. e5 {[%emt 0:13:38]} (17. g4 $16) 17... d5 $14 {[%emt 0:00:00]} 18. g4 {[%emt 0:00:06][%cal Of4f5,Bg3g4,Bg4f5][%mdl 32]} b5 {[%emt 0:00:00]} 19. f5 {[%emt 0:02:24]} gxf5 {[%emt 0:00:00] White leaves nothing to chance now.} (19... Qd8 $14) 20. gxf5 $16 {[%emt 0:00:06]} Bh6 {[%emt 0:00:00]} 21. Nf4 {[%emt 0:02:36]} Qg7 $2 {[%emt 0:00:00]} (21... exf5 $16 22. Bxd5 Qg7+ 23. Qg2 Qxg2+ 24. Bxg2 Ne7) 22. Rf3 $18 {[%emt 0:01:17]} Kh8 {[%emt 0:00:00]} 23. Rg3 {[%emt 0:00:29]} Qf8 {[%emt 0:00:00]} 24. Qf2 {[%emt 0:02:15]} b4 {[%emt 0:00:00]} 25. Rf1 {[%emt 0:02:59] Strongly threatening fxe6.} Ne7 {[%emt 0:00:00]} 26. fxe6 {[%emt 0:01:25]} fxe6 {[%emt 0:00:00]} 27. cxb4 {[%emt 0:03:45]} Nf5 {[%emt 0:00:00]} 28. Rf3 {[%emt 0:00:10]} Qxb4 {[%emt 0:00:00]} 29. Bh3 $1 {[%emt 0:00:13] Hoping for Bxf5.} Qb2 {[%emt 0:00:00] [#]} (29... Bxf4 {is a better defense.} 30. Rxf4 Rb7) 30. Nxe6 $1 {[%emt 0:12:08][%mdl 512]} Bxe6 {[%emt 0:00:00]} (30... Qxf2+ 31. Kxf2) 31. Bxf5 {[%emt 0:00:11]} Bxf5 {[%emt 0:00:00] [#]} 32. Rxf5 $2 {[%emt 0:00:05]} (32. Qxb2 $1 $18 {and the rest is easy.} Rxb2 33. Rxf5) 32... Qxf2+ $4 {[%emt 0:00:38][%mdl 8192]} (32... c3 $16 33. Qxb2 cxb2) 33. Kxf2 {[%emt 0:04:40][%mdl 4096] Endgame KRR-KRB} c3 {[%emt 0:01:06]} 34. Rf6 {[%emt 0:04:48]} Bg5 {[%emt 0:03:26] Threatens to win with ...c2.} 35. Rc6 {[%emt 0:00:57]} Rb2+ {[%emt 0:00:09]} 36. Kg3 {[%emt 0:00:37]} c2 {[%emt 0:03:44]} 37. e6 {[%emt 0:03:13]} Rb1 {[%emt 0:00:43]} 38. e7 {[%emt 0:07:13]} (38. Rf8+ $142 Kg7 39. Rf7+ Kg6 40. Rxc2 Rg1+ 41. Kf2) 38... Bxe7 {[%emt 0:00:15]} 39. Kg2 {[%emt 0:00:02]} ({But not} 39. Rf7 $2 {[#]} Bd6+ $1 {[%mdl 512]} 40. Kg4 c1=Q $19) 39... Rb2 {[%emt 0:00:23]} 40. Rf2 {[%emt 0:00:03]} Rb4 $2 {[%emt 0:01:24]} (40... Rxa2 41. Rfxc2 Rxc2+ 42. Rxc2 Bf6 43. Rc8+ Kg7 44. Rc7+ Kg6 45. Rxa7 Bxd4) 41. Rcxc2 {[%emt 0:34:23] Threatening mate with Rf7.} Bh4 {[%emt 0:08:06]} (41... Rb7 $142 42. Rf7 Kg8) 42. Rf7 {[%emt 0:00:00] White threatens Rc8+ and mate.} Kg8 {[%emt 0:00:06]} 43. Rxa7 {[%emt 0:00:00] Weighted Error Value: White=0.28 (precise) /Black=0.56} 1-0

[Event "24th Hoogeschool Zeeland 2022"]
[Site "Vlissingen"]
[Date "2022.08.11"]
[Round "7.18"]
[White "Bazilius, Augustinas"]
[Black "Van der Kaap, Jos"]
[Result "1/2-1/2"]
[ECO "A50"]
[WhiteElo "2045"]
[BlackElo "2187"]
[Annotator "TA"]
[PlyCount "83"]
[EventDate "2022.08.05"]
[EventType "swiss"]
[EventCountry "NED"]
[SourceTitle "playchess.com"]
[Source "ChessBase"]
[SourceQuality "1"]
[TimeControl "40/5400+30:1800+30"]

{[%evp 9,83,21,32,30,29,25,24,10,34,45,50,40,38,8,14,4,8,7,20,0,0,-16,-13,-22,-18,-56,-52,-42,-40,-62,-58,-51,-47,-68,-44,-72,-65,-81,-66,-72,-37,-37,-37,-37,-37,-75,-79,-80,-37,-37,-37,-37,-37,-37,-37,-37,-37,-37,-37,-50,-50,-50,-50,-50,-37,-37,0,-50,-37,-50,-37,-37,-37,-37,-37,-37]} 1. d4 {[%emt 0:00:15]} Nf6 {[%emt 0:00:05]} 2. c4 {[%emt 0:00:11]} c6 {[%emt 0:00:08]} 3. Nf3 {[%emt 0:00:31]} b5 {[%emt 0:00:12]} 4. e3 {[%emt 0:13:15]} bxc4 {[%emt 0:00:41]} 5. Bxc4 {[%emt 0:02:24]} Ba6 {[%emt 0:00:06]} 6. Bxa6 {[%emt 0:05:01] A50: Queen's Fianchetto Defence (1 d4 Nf6 2 c4 b6).} Qa5+ {[%emt 0:00:24]} 7. Nc3 {[%emt 0:01:18] [#] Threatens to win with Bb7.} Qxa6 {[%emt 0:00:08]} 8. Qe2 {[%emt 0:02:42] White has an edge.} d5 {[%emt 0:03:04]} 9. Ne5 {[%emt 0:02:54]} Qxe2+ {[%emt 0:01:23]} 10. Kxe2 {[%emt 0:01:51]} Nfd7 {[%emt 0:01:13]} 11. Nxd7 {[%emt 0:10:23] [#]} Nxd7 $146 {[%emt 0:00:35]} ({Predecessor:} 11... Kxd7 12. Bd2 e6 13. Na4 Na6 14. Rhc1 Bd6 15. a3 Rhc8 16. b4 f6 17. h3 e5 {½-½ (27) Hajdarevic,D (2135)-Roth,P (2120) Austria 2016}) 12. Na4 {[%emt 0:03:03]} e6 {[%emt 0:14:39]} 13. b3 {[%emt 0:01:30]} Bd6 {[%emt 0:02:10]} 14. Bb2 {[%emt 0:01:07]} Nb6 {[%emt 0:05:20]} 15. Nxb6 {[%emt 0:02:08]} axb6 {[%emt 0:00:07]} 16. a3 {[%emt 0:03:06]} Kd7 {[%emt 0:01:57]} 17. b4 {[%emt 0:04:30]} b5 {[%emt 0:02:25]} 18. Kd3 {[%emt 0:11:44]} h5 {[%emt 0:02:38]} 19. Rae1 {[%emt 0:08:00]} Rh6 {[%emt 0:02:03]} 20. f3 {[%emt 0:04:08]} g5 {[%emt 0:04:19]} 21. Reg1 {[%emt 0:07:28]} Rg8 {[%emt 0:07:27]} 22. Ke2 {[%emt 0:02:58]} f6 {[%emt 0:04:18]} 23. Kf2 {[%emt 0:02:09]} g4 {[%emt 0:04:28][%cal Od6h2]} 24. h3 {[%emt 0:02:18]} gxf3 {[%emt 0:09:40]} 25. gxf3 {[%emt 0:00:23]} Rhg6 {[%emt 0:01:19]} 26. Rxg6 {[%emt 0:00:08]} Rxg6 {[%emt 0:00:03]} 27. Rg1 {[%emt 0:00:07]} Rxg1 {[%emt 0:02:45]} 28. Kxg1 $17 {[%emt 0:00:01][%mdl 4096] Endgame KB-KB} Bf8 {[%emt 0:05:41]} 29. Kf2 {[%emt 0:00:58]} Ke8 {[%emt 0:00:15]} 30. Kg3 {[%emt 0:04:36]} Kf7 {[%emt 0:00:48]} 31. f4 {[%emt 0:02:46]} Kg6 {[%emt 0:01:57]} 32. Kf3 {[%emt 0:00:09]} Kf5 {[%emt 0:00:51]} 33. Bc3 {[%emt 0:00:09]} Bd6 {[%emt 0:01:40]} 34. Bb2 {[%emt 0:00:46]} e5 {[%emt 0:01:47]} 35. Bc1 {[%emt 0:00:06]} Bc7 {[%emt 0:04:52]} 36. Bd2 {[%emt 0:00:14]} Bb6 {[%emt 0:01:38]} 37. Bc3 {[%emt 0:00:06][%cal Rd4e5]} Bc7 {[%emt 0:01:28][%cal Re5f4]} 38. Bd2 $1 {[%emt 0:00:11]} Bd8 {[%emt 0:00:18] Black is slightly better.} 39. Bc3 {[%emt 0:00:25][%cal Rd4e5]} exf4 {[%emt 0:00:27]} 40. exf4 {[%emt 0:00:12]} Kg6 {[%emt 0:00:54]} 41. Bd2 {[%emt 0:30:29]} f5 {[%emt 0:30:23]} 42. Kg3 {[%emt 0:01:51] Weighted Error Value: White=0.08 (flawless) /Black=0.08 (flawless)} 1/2-1/2

[Event "24th Hoogeschool Zeeland 2022"]
[Site "Vlissingen"]
[Date "2022.08.11"]
[Round "7.19"]
[White "Honkoop, Gilian"]
[Black "Manukonda Arun"]
[Result "1-0"]
[ECO "D19"]
[WhiteElo "2205"]
[BlackElo "2021"]
[Annotator "TA"]
[PlyCount "71"]
[EventDate "2022.08.05"]
[EventType "swiss"]
[EventCountry "NED"]
[SourceTitle "playchess.com"]
[Source "ChessBase"]
[SourceQuality "1"]
[TimeControl "40/5400+30:1800+30"]

{[%evp 23,71,29,44,0,11,20,17,0,10,6,80,72,86,70,86,0,135,156,154,141,184,184,181,181,160,181,317,267,289,208,370,181,635,647,629,613,599,618,607,591,1685,1805,1681,1601,29980,2916,29989,29990,29991,29991]} 1. d4 {[%emt 0:06:46]} d5 {[%emt 0:01:27]} 2. Nf3 {[%emt 0:00:04]} Nf6 {[%emt 0:00:13]} 3. c4 {[%emt 0:00:04]} c6 {[%emt 0:00:03]} 4. Nc3 {[%emt 0:00:04]} dxc4 {[%emt 0:00:07]} 5. a4 {[%emt 0:00:02]} Bf5 {[%emt 0:00:07]} 6. e3 {[%emt 0:00:10]} e6 {[%emt 0:00:04]} 7. Bxc4 {[%emt 0:00:03]} Bb4 {[%emt 0:00:04]} 8. O-O {[%emt 0:00:04]} O-O {[%emt 0:00:08]} 9. Qe2 {[%emt 0:00:06]} Bg6 {[%emt 0:00:44]} 10. Ne5 {[%emt 0:00:19]} Nbd7 {[%emt 0:07:26]} 11. Nxg6 {[%emt 0:00:07]} hxg6 {[%emt 0:00:01]} 12. Rd1 {[%emt 0:03:04]} Qc7 {[%emt 0:07:33] outshines the older 12...Qa5.} 13. f4 {[%emt 0:16:51] D19: Slav Defence: 5 a4 Bf5 6 e3: Main line with 9 Qe2.} c5 {[%emt 0:03:13]} 14. Na2 {[%emt 0:00:52] [#]} a5 $146 {[%emt 0:03:17]} ({Predecessor:} 14... Ba5 15. dxc5 Qxc5 16. b4 Bxb4 17. Nxb4 Nb6 18. Bd3 Qxb4 19. Ba3 Qa5 20. Bxf8 Rxf8 {1-0 (37) Incutto,C-Cespa,R Martinez Valle 1993}) 15. Nxb4 {[%emt 0:01:19] The position is equal.} axb4 {[%emt 0:02:36]} 16. Bd2 {[%emt 0:13:36]} b6 {[%emt 0:09:32]} (16... Rfc8 $11) 17. Be1 $16 {[%emt 0:55:29]} Rfc8 {[%emt 0:08:41]} 18. b3 {[%emt 0:00:00]} Qb7 {[%emt 0:09:20]} 19. e4 {[%emt 0:00:00]} (19. Rac1 $16) 19... cxd4 {[%emt 0:12:58]} (19... Qxe4 $11 {keeps the balance.} 20. Qxe4 Nxe4) 20. e5 {[%emt 0:00:00] White stays focused until the end.} ({Much less strong is} 20. Rxd4 Nc5 21. Rad1 (21. Bxb4 b5 $17) 21... Nfxe4 $14) 20... Nd5 {[%emt 0:16:56]} 21. Rxd4 {[%emt 0:00:00]} Nc5 {[%emt 0:01:46] [#]} 22. Rad1 $1 {[%emt 0:00:00]} Ne7 {[%emt 0:02:15]} 23. Bxb4 {[%emt 0:00:00]} Nf5 {[%emt 0:00:16]} 24. R4d2 {[%emt 0:00:00]} g5 {[%emt 0:07:03]} (24... Qa7 $142) 25. fxg5 {[%emt 0:00:00]} g6 {[%emt 0:00:18]} 26. Ba3 {[%emt 0:00:00]} Kg7 $2 {[%emt 0:03:15]} (26... b5 {was called for.}) 27. Qe1 {[%emt 0:00:00]} (27. Bxc5 $142 bxc5 {[#]} 28. Bxe6 $1 {[%mdl 512]} (28. Rd7 Rc7 $18)) 27... Rh8 $2 {[%emt 0:00:56]} (27... b5) 28. Bxc5 $18 {[%emt 0:00:00]} bxc5 {[%emt 0:00:11] [#]} 29. Bxe6 $1 {[%emt 0:00:00][%mdl 512] Threatens to win with Rd7.} Nd4 {[%emt 0:00:13]} 30. Bc4 {[%emt 0:00:00]} Rh5 {[%emt 0:00:23]} 31. Qf2 {[%emt 0:00:00]} Rf8 {[%emt 0:03:24]} 32. Qf6+ {[%emt 0:00:00]} Kh7 {[%emt 0:00:18]} 33. Rf2 {[%emt 0:00:00] e6 is the strong threat.} Qe4 {[%emt 0:00:28]} 34. Bxf7 {[%emt 0:00:00]} (34. Qe7 $142 Rxg5 35. Qxf8 Rf5 36. Rxf5 Nxf5 37. Bxf7 Ng7 38. Qg8+ Kh6 39. Qh8+ Kg5 40. Qxg7) 34... Rxg5 {[%emt 0:01:40]} 35. Qxg5 {[%emt 0:00:00]} Ne2+ {[%emt 0:00:01] [#]} 36. Rxe2 $1 {[%emt 0:00:00] Weighted Error Value: White=0.24 (precise) /Black=1.16} 1-0